Cogmind - Beta 13 @@@ ROGUE MODE // 2024.05.20 @ 00:22:06 Player: Sherlockkat Result: Self-destructed Performance ------------- Evolutions (4) 2000 Regions Visited (11) 2200 Robots Destroyed (108) 540 Value Destroyed (4457) 4457 Prototype IDs (32) 640 Alien Tech Used (0) 0 Bonus (367) 367 TOTAL SCORE: 10204 Bonus ------- High Alert Combat Kills 109 Follower Combat Kills 70 Entered Garrisons 200 Used RIF Installer 500 Entered DSFs 500 Aligned with FarCom 300 Friendly Fire -1312 Cogmind --------- Core Integrity 850/850 Matter 185/300 Energy 500/500 System Corruption 5% Temperature Cool (0) Movement Treading (170) Location -6/Waste Parts ------- > --- POWER (1) -------- F-cell Engine > --- PROPULSION (4) --- Armored Treads Armored Treads Armored Treads > --- UTILITY (8) ------ Large Storage Unit Gravity Neutralizer Advanced Targeting Computer Layered Light Armor Plating Relay Coupler [NC] (28) > --- WEAPON (2) ------- Cooled Pulse Rifle Advanced Assault Cannon > --- INVENTORY (15) --- Light Nuclear Core Armored Treads Armored Treads Active Sensor Spoofer Reactive Plating Improved Shield Generator Relay Coupler [Grunt] (44) Relay Coupler [Grunt] (39) Relay Coupler [Sentry] (23) Light EM Pulse Cannon High-powered Shotgun Gauss Rifle Flak Cannon Shock Bomb Launcher Datajack Peak State ------------ > --- POWER ------------ F-cell Engine > --- PROPULSION ------- Armored Treads Armored Treads Armored Treads Armored Treads > --- UTILITY ---------- Advanced Cooling System Large Storage Unit Gravity Neutralizer Advanced Targeting Computer Layered Light Armor Plating Medium Reactive Plating Relay Coupler [NC] > --- WEAPON ----------- Cooled Pulse Rifle Advanced Assault Cannon > --- INVENTORY -------- Light Nuclear Core Armored Treads Armored Treads Active Sensor Spoofer Reactive Plating Improved Shield Generator Relay Coupler [Grunt] Relay Coupler [Grunt] Relay Coupler [Sentry] Light EM Pulse Cannon High-powered Shotgun Gauss Rifle Flak Cannon Shock Bomb Launcher Datajack [Rating: 56] Favorites ----------- Power Heavy Ion Engine Engine Heavy Ion Engine Power Core Light Nuclear Core Propulsion Light Treads Treads Light Treads Utility Large Storage Unit Device Improved Heat Sink Storage Large Storage Unit Processor 0b10 Alert Chip Hackware Hacking Suite Protection Layered Light Armor Plating Weapon Cooled Pulse Rifle Energy Gun Cooled Pulse Rifle Energy Cannon EM Pulse Cannon Ballistic Gun Light Assault Rifle Ballistic Cannon Advanced Assault Cannon Launcher Shock Bomb Launcher Special Melee Weapon Datajack Build | -11 -10 -10 -10 -9 -8 -7 -7 -7 -7 -6 -6 ------- Run | Yrd Mat Min Exi Min Mat Fac Gar Fac DSF Fac Was Slots Evolved 8 | . . . . . 4 2 . . . 2 . Power . | . . . . . . . . . . . . Propulsion 2 | . . . . . 1 1 . . . . . Utility 6 | . . . . . 3 1 . . . 2 . Weapon . | . . . . . . . . . . . . Parts Attached 120 | 6 9 2 7 . 39 17 22 5 11 2 . Power 9 | 1 . . 2 . 4 . 1 . . 1 . Engine 7 | 1 . . 2 . 3 . . . . 1 . Core 2 | . . . . . 1 . 1 . . . . Reactor . | . . . . . . . . . . . . Propulsion 30 | 2 1 . 1 . 9 2 5 . 10 . . Treads 30 | 2 1 . 1 . 9 2 5 . 10 . . Leg . | . . . . . . . . . . . . Wheel . | . . . . . . . . . . . . Hover . | . . . . . . . . . . . . Flight . | . . . . . . . . . . . . Utility 36 | 1 3 . 1 . 11 8 6 5 . 1 . Device 9 | . . . . . 2 3 1 2 . 1 . Storage 3 | 1 2 . . . . . . . . . . Processor 2 | . . . 1 . . 1 . . . . . Hackware 6 | . . . . . 3 2 . 1 . . . Protection 16 | . 1 . . . 6 2 5 2 . . . Artifact . | . . . . . . . . . . . . Weapon 45 | 2 5 2 3 . 15 7 10 . 1 . . Energy Gun 15 | 1 1 1 2 . 4 1 4 . 1 . . Energy Cannon 4 | . . . . . 4 . . . . . . Ballistic Gun 8 | 1 2 . . . 5 . . . . . . Ballistic Cannon 7 | . . . . . 1 4 2 . . . . Launcher 10 | . 2 1 1 . . 2 4 . . . . Special Weapon . | . . . . . . . . . . . . Impact Weapon . | . . . . . . . . . . . . Slashing Weapon . | . . . . . . . . . . . . Piercing Weapon . | . . . . . . . . . . . . Special Melee Weapon 1 | . . . . . 1 . . . . . . Unidentified Prototypes 7 | . . . . . 2 2 . 1 . 2 . Corrupted Parts 1 | . . . . . . . . 1 . . . System Corruption 1 | . . . . . . . . 1 . . . Parts Lost 21 | . . . . . 15 . 5 . . . 1 Power 2 | . . . . . 2 . . . . . . Propulsion 5 | . . . . . 4 . 1 . . . . Utility 6 | . . . . . 3 . 2 . . . 1 Weapon 8 | . . . . . 6 . 2 . . . . Highest Loss Streak 5 | . . . . . 5 . 3 . . . 1 To Critical Strikes . | . . . . . . . . . . . . Average Slot Usage (%) 95 | . 92 100 100 100 90 99 98 100 100 90 93 Engine 5 | . 14 14 14 14 3 7 3 . . 5 6 Core 2 | . . . . . 4 . 3 7 7 . . Treads 27 | . 28 28 28 28 24 30 29 30 30 26 26 Device 6 | . . . . . 10 7 5 7 7 10 13 Storage 8 | . 14 14 14 14 9 7 7 7 7 6 6 Processor 8 | . . . 7 14 9 7 15 9 7 6 6 Hackware 4 | . . . . . 5 14 . 4 7 6 6 Protection 9 | . 7 14 6 . 7 7 14 15 15 13 13 Energy Gun 8 | . 13 12 14 14 6 7 8 7 7 6 6 Ballistic Gun 4 | . 13 14 12 . 5 . . . . . . Ballistic Cannon 2 | . . . . . 1 6 2 7 7 6 6 Launcher 1 | . . 1 1 14 . . 3 . . . . Naked Turns . | . . . . . . . . . . . . Heaviest Build 68 | 13 29 28 29 29 44 46 50 61 61 68 68 Greatest Support 92 | 40 40 40 40 40 63 80 80 80 84 92 92 Greatest Overweight (x) 2 | . . . . . 2 . . . 1 . . Average Overweight (x) . | . . . . . . . . . . . . Largest Inventory Capacity 15 | 8 15 15 15 15 15 15 15 15 15 15 15 Average Capacity 14 | 7 11 15 15 15 15 15 15 15 15 15 15 Most Carried 15 | 4 15 15 15 15 15 15 15 15 15 15 15 Average Carried 13 | 3 10 15 14 15 13 14 14 14 14 15 15 Final Capacity 15 | 8 15 15 15 15 15 15 15 15 15 15 15 Final Carried 15 | 4 15 15 15 15 15 15 15 15 15 15 15 Class Distribution -------------------- 59% | Mutant 20% | Scavenger-Mutant 15% | Hacker-Mutant 4% | Bothacker-Mutant Dominant Class ---------------- Mutant | -10/Materials Mutant | -10/Mines Mutant | -10/Exiles Mutant | -9/Mines Mutant | -8/Materials Hacker-Mutant | -7/Factory Scavenger-Mutant | -7/Garrison Scavenger-Mutant | -7/Factory Bothacker-Mutant | -7/DSF Bothacker-Mutant | -6/Factory Bothacker-Mutant | -6/Waste Resources | -11 -10 -10 -10 -9 -8 -7 -7 -7 -7 -6 -6 ----------- Run | Yrd Mat Min Exi Min Mat Fac Gar Fac DSF Fac Was Matter Collected 2739 | 290 238 27 . . 812 422 615 95 233 7 . Remotely . | . . . . . . . . . . . . Salvage Created 4881 | 123 390 47 . . 2535 390 739 175 482 . . Parts 246 | 6 34 1 . . 124 18 33 9 21 . . Haulers Intercepted 3 | . 1 . . . 1 1 . . . . . Recyclers Shooed 4 | . 1 . . . 3 . . . . . . Parts Field Recycled . | . . . . . . . . . . . . Retrieved Matter . | . . . . . . . . . . . . Parts Self-Destructed . | . . . . . . . . . . . . Prevented . | . . . . . . . . . . . . Kills | -11 -10 -10 -10 -9 -8 -7 -7 -7 -7 -6 -6 ------- Run | Yrd Mat Min Exi Min Mat Fac Gar Fac DSF Fac Was Combat Hostiles Destroyed 94 | . 13 2 . . 41 7 21 . 10 . . Guns 51 | . 7 1 . . 27 4 7 . 5 . . Cannons 23 | . . . . . 10 3 5 . 5 . . AOE 18 | . 6 1 . . 3 . 8 . . . . Classes Destroyed 16 | 3 5 . . . 3 1 3 1 . . . Worker 3 | 1 . . . . 2 . . . . . . Tunneler 1 | 1 . . . . . . . . . . . Hauler 3 | . 1 . . . 1 1 . . . . . Recycler 7 | 1 2 . . . 3 1 . . . . . Operator 4 | . 2 . . . 1 1 . . . . . Watcher 5 | . 1 . . . 4 . . . . . . Swarmer 9 | . 9 . . . . . . . . . . Cutter 2 | . . . . . . . 2 . . . . Grunt 59 | . 4 2 . . 35 6 6 . 6 . . Brawler 1 | . . . . . 1 . . . . . . Duelist 2 | . . . . . . . 2 . . . . Sentry 12 | . . . . . 5 . 6 . 1 . . Demolisher 1 | . . . . . . . 1 . . . . Specialist 2 | . . . . . . . . . 2 . . Programmer 5 | . . . . . . 1 4 . . . . Heavy 2 | . . . . . 1 . . . 1 . . Infiltrator 2 | . . . . . . . . 2 . . . Best Kill Streak 8 | 2 5 2 . . 8 3 4 . 3 . . Combat Bots Only 6 | . 3 2 . . 6 3 4 . 3 . . Max Kills in Single Turn 3 | 1 3 1 . . 1 1 2 1 1 . . Gunslinging . | . . . . . . . . . . . . Exploded 2 | . 2 1 . . 1 . 2 . . . . Melee . | . . . . . . . . . . . . Uniques/NPCs Destroyed . | . . . . . . . . . . . . Combat | -11 -10 -10 -10 -9 -8 -7 -7 -7 -7 -6 -6 -------- Run | Yrd Mat Min Exi Min Mat Fac Gar Fac DSF Fac Was Hostile Shots Fired 628 | . 33 8 . . 213 43 276 . 54 . 1 Missed 219 | . 8 1 . . 53 15 129 . 13 . . Damage Taken 6035 | . 303 117 . . 2582 444 1897 . 659 . 33 Core 610 | . 57 10 . . 331 29 128 . 55 . . Absorbed by Shields 98 | . . . . . . . 98 . . . . Ignored by Resistances 163 | . . . . . . . . . 163 . . Regen/Repaired (Parts) 185 | . . . . . . 185 . . . . . Core Remaining (%) 70 | 100 . . . 73 39 . . . 69 . . Volleys Fired 340 | 10 39 5 7 . 119 35 60 34 24 4 3 Largest 2 | 2 2 2 2 . 2 2 2 1 2 2 2 Hottest 120 | 60 60 60 90 . 113 108 120 60 108 68 68 Shots Fired 650 | 20 73 7 9 . 281 68 96 34 49 8 5 Gun 472 | 20 68 4 8 . 221 33 52 34 26 4 2 Cannon 143 | . . . . . 60 34 19 . 23 4 3 Launcher 35 | . 5 3 1 . . 1 25 . . . . Special . | . . . . . . . . . . . . Kinetic 247 | 10 34 2 4 . 114 34 19 . 23 4 3 Thermal 326 | 10 34 2 4 . 125 33 52 34 26 4 2 Explosive 28 | . 5 3 1 . . 1 18 . . . . Electromagnetic 49 | . . . . . 42 . 7 . . . . Robot Hit Streak 60 | 4 11 1 . . 23 8 30 20 60 5 10 Robot Miss Streak 5 | 5 2 2 . . 4 4 3 2 1 1 . Penetration Max . | . . . . . . . . . . . . Secondary Targets 2 | . . . . . 1 . 1 . . . . Max Gunslinging Chain 1 | . . . . . 1 . 1 . . . . Autonomous 76 | . . . . . 76 . . . . . . Shots Hit Robots 490 | 9 49 2 . . 219 45 80 32 42 7 5 Core Hits 245 | 4 29 3 . . 104 25 53 7 18 1 1 Critical Kills . | . . . . . . . . . . . . Critical Parts Destroyed 1 | . . . . . 1 . . . . . . Critical Strikes 15 | . . . . . 7 2 4 1 1 . . Burn 7 | . . . . . 5 1 . 1 . . . Destroy 1 | . . . . . 1 . . . . . . Blast 6 | . . . . . . 1 4 . 1 . . Corrupt 1 | . . . . . 1 . . . . . . Melee Attacks . | . . . . . . . . . . . . Impact . | . . . . . . . . . . . . Slashing . | . . . . . . . . . . . . Piercing . | . . . . . . . . . . . . Sneak Attacks . | . . . . . . . . . . . . Combat Hostiles . | . . . . . . . . . . . . Follow-up Attacks . | . . . . . . . . . . . . Damage Inflicted 12109 | 105 1006 127 . . 4694 972 2981 883 1079 149 113 Guns 7042 | 105 527 7 . . 3278 543 1099 883 486 76 38 Cannons 2837 | . . . . . 1223 429 444 . 593 73 75 Explosions 2224 | . 479 120 . . 187 . 1438 . . . . Melee . | . . . . . . . . . . . . Ramming 6 | . . . . . 6 . . . . . . Kinetic 3219 | 49 251 7 . . 1298 429 444 . 593 73 75 Thermal 5888 | 56 276 . . . 2431 543 1099 883 486 76 38 Explosive 1596 | . 479 120 . . . . 997 . . . . Electromagnetic 1400 | . . . . . 959 . 441 . . . . Impact . | . . . . . . . . . . . . Slashing . | . . . . . . . . . . . . Piercing . | . . . . . . . . . . . . Highest Corruption 12 | . . . . . 4 2 11 12 12 . 5 Average Corruption 6 | . . . . . 4 2 7 11 12 . 5 Corruption Purged . | . . . . . . . . . . . . Corruption Blocked . | . . . . . . . . . . . . Effects 120 | . . . . . 31 6 54 12 15 . 2 Message Errors 33 | . . . . . 9 3 13 4 4 . . Matter Fused 28 | . . . . . 7 . 16 3 2 . . Heat Flow Errors 16 | . . . . . 5 1 7 . 3 . . Energy Discharges 13 | . . . . . 5 . 4 3 1 . . Parts Fused 3 | . . . . . 1 1 1 . . . . Data Loss (minor) 15 | . . . . . 2 1 8 2 2 . . Data Loss (major) 3 | . . . . . 1 . 2 . . . . Misfires 5 | . . . . . . . 3 . 2 . . Alerts 2 | . . . . . 1 . . . . . 1 Weapon Failures 2 | . . . . . . . . . 1 . 1 Overload Shots 42 | . . . . . . 5 15 15 7 . . Effects 3 | . . . . . . . 1 1 1 . . Energy Bleed 2 | . . . . . . . 1 . 1 . . Heat Surge 1 | . . . . . . . . 1 . . . Overflow Damage 88 | . . . . . 24 1 63 . . . . Projectiles 1 | . . . . . . 1 . . . . . Explosions 87 | . . . . . 24 . 63 . . . . Melee . | . . . . . . . . . . . . Knockbacks 26 | . . . . . 5 12 1 . 6 2 . Impact . | . . . . . . . . . . . . Kinetic 24 | . . . . . 5 11 1 . 5 2 . Secondary 2 | . . . . . . 1 . . 1 . . Self-Inflicted Damage 578 | . 57 20 . . 88 . 413 . . . . Shots 24 | . 1 2 . . 2 . 19 . . . . Rammed 2 | . . . . . 2 . . . . . . Targets Rammed 2 | . . . . . 2 . . . . . . Kicked . | . . . . . . . . . . . . Crushed . | . . . . . . . . . . . . Highest Temperature 322 | . 60 39 60 . 257 322 246 142 235 . . Average Temperature 60 | . 30 20 29 . 56 90 77 92 108 . . Received Heat Transfer 2311 | . 90 75 . . 1485 189 307 . 165 . . Siege Activations . | . . . . . . . . . . . . Robots Corrupted 1 | . . . . . . . 1 . . . . Combat Hostiles 1 | . . . . . . . 1 . . . . Parts Fried 12 | . . . . . 8 . 4 . . . . Impact Corruptions . | . . . . . . . . . . . . Robots Melted 1 | . . . . . 1 . . . . . . Combat Hostiles 1 | . . . . . 1 . . . . . . Parts Melted 14 | . . . . . 7 1 5 . 1 . . Heat Transferred 9815 | 125 625 . . . 4059 1040 1497 1466 781 148 74 Parts Sabotaged . | . . . . . . . . . . . . Parts Stolen . | . . . . . . . . . . . . Parts Stripped . | . . . . . . . . . . . . Power Chain Reactions 3 | . . . . . 3 . . . . . . Alert | -11 -10 -10 -10 -9 -8 -7 -7 -7 -7 -6 -6 ------- Run | Yrd Mat Min Exi Min Mat Fac Gar Fac DSF Fac Was Peak Influence 740 | 15 293 119 . . 285 162 740 389 508 266 108 Initial 388 | . 9 57 . . . 129 11 388 272 266 93 Average 213 | 5 89 114 . . 112 72 461 388 389 266 97 Maximum Alert Level 3 | . 1 . . . 1 . 3 1 2 1 . Low Security (%) 61 | 100 96 100 . 100 80 100 14 . . . 100 Level 1 20 | . 3 . . . 19 . 22 100 53 100 . Level 2 16 | . . . . . . . 58 . 46 . . Level 3 1 | . . . . . . . 5 . . . . Level 4 . | . . . . . . . . . . . . Level 5 . | . . . . . . . . . . . . High Security . | . . . . . . . . . . . . Max Security . | . . . . . . . . . . . . Sterilizations 1 | . . . . . . . . . 1 . . Squads Dispatched 16 | . 3 . . . 8 4 . . 1 . . Investigation 4 | . . . . . 2 2 . . . . . Extermination 1 | . . . . . . 1 . . . . . Reinforcement 11 | . 3 . . . 6 1 . . 1 . . Assault . | . . . . . . . . . . . . Garrison . | . . . . . . . . . . . . Intercept . | . . . . . . . . . . . . Searches Triggered . | . . . . . . . . . . . . Construction Impeded 1 | . . . . . 1 . . . . . . Haulers Reinforced . | . . . . . . . . . . . . Active Scanning Responses . | . . . . . . . . . . . . Cargo Convoy Interrupts . | . . . . . . . . . . . . Stealth | -11 -10 -10 -10 -9 -8 -7 -7 -7 -7 -6 -6 --------- Run | Yrd Mat Min Exi Min Mat Fac Gar Fac DSF Fac Was Distress Signals 7 | . 3 . . . 2 2 . . . . . Communications Jammed . | . . . . . . . . . . . . Distress Signals . | . . . . . . . . . . . . Times Spotted 133 | . 25 2 3 . 55 12 26 . 9 . 1 Peak Tracking Total 9 | . 6 2 9 . 7 4 5 . 3 . 1 Tactical Retreats 3 | . . . . . 2 . . . 1 . . Traps | -11 -10 -10 -10 -9 -8 -7 -7 -7 -7 -6 -6 ------- Run | Yrd Mat Min Exi Min Mat Fac Gar Fac DSF Fac Was Traps Triggered 9 | . . . . . 2 2 3 . 1 1 . Indirectly . | . . . . . . . . . . . . Trap Hack Attempts . | . . . . . . . . . . . . Triggered . | . . . . . . . . . . . . Disarmed . | . . . . . . . . . . . . Reprogrammed . | . . . . . . . . . . . . Reused . | . . . . . . . . . . . . Traps Extracted . | . . . . . . . . . . . . Installed . | . . . . . . . . . . . . Triggered . | . . . . . . . . . . . . Machines | -11 -10 -10 -10 -9 -8 -7 -7 -7 -7 -6 -6 ---------- Run | Yrd Mat Min Exi Min Mat Fac Gar Fac DSF Fac Was Machines Disabled 8 | . 2 . 1 . 1 1 3 . . . . Max in Single Turn 1 | . 1 . 1 . 1 1 1 . . . . Garrison Relay 3 | . . . . . . . 3 . . . . Machines Repaired . | . . . . . . . . . . . . Machines Dismantled . | . . . . . . . . . . . . Machines Sabotaged . | . . . . . . . . . . . . Overloaded Fab Kills . | . . . . . . . . . . . . Hacking | -11 -10 -10 -10 -9 -8 -7 -7 -7 -7 -6 -6 --------- Run | Yrd Mat Min Exi Min Mat Fac Gar Fac DSF Fac Was Machines Accessed 18 | . 3 . 1 . 4 5 3 1 . 1 . Terminals 15 | . 3 . . . 4 3 3 1 . 1 . Fabricators . | . . . . . . . . . . . . Repair Stations 1 | . . . . . . 1 . . . . . Recycling Units . | . . . . . . . . . . . . Scanalyzers . | . . . . . . . . . . . . Garrison Access 1 | . . . . . . 1 . . . . . Total Hacks 35 | . 6 . 1 . 10 12 4 1 . 1 . Successful 13 | . 3 . 1 . 3 4 1 1 . . . Failed 22 | . 3 . . . 7 8 3 . . 1 . Catastrophic 5 | . 1 . . . 2 . 1 . . 1 . Database Lockouts . | . . . . . . . . . . . . Manual 22 | . 4 . 1 . 10 5 1 . . 1 . Terminals 30 | . 6 . . . 10 8 4 1 . 1 . Fabricators . | . . . . . . . . . . . . Repair Stations 2 | . . . . . . 2 . . . . . Recycling Units . | . . . . . . . . . . . . Scanalyzers . | . . . . . . . . . . . . Garrison Access 2 | . . . . . . 2 . . . . . Terminal Hacks 10 | . 3 . 1 . 3 1 1 1 . . . Record 1 | . 1 . . . . . . . . . . Prototype ID Bank 1 | . 1 . . . . . . . . . . Open DSF 1 | . . . . . . . . 1 . . . Garrison Index 1 | . . . . . 1 . . . . . . Unreport Threat 1 | . . . . . 1 . . . . . . Recall Reinforcements 1 | . 1 . . . . . . . . . . Zone Layout 2 | . . . . . 1 1 . . . . . Patrol Navigation 1 | . . . . . . . 1 . . . . Derelict Proto ID Bank 1 | . . . 1 . . . . . . . . Fabricator Hacks . | . . . . . . . . . . . . Repair Station Hacks 2 | . . . . . . 2 . . . . . Scan Component 1 | . . . . . . 1 . . . . . Repair 1 | . . . . . . 1 . . . . . Recycling Unit Hacks . | . . . . . . . . . . . . Scanalyzer . | . . . . . . . . . . . . Garrison Access Hacks 1 | . . . . . . 1 . . . . . Unlock Access 1 | . . . . . . 1 . . . . . Unauthorized Hacks . | . . . . . . . . . . . . Terminals . | . . . . . . . . . . . . Fabricators . | . . . . . . . . . . . . Repair Stations . | . . . . . . . . . . . . Recycling Units . | . . . . . . . . . . . . Scanalyzers . | . . . . . . . . . . . . Garrison Access . | . . . . . . . . . . . . Data Cores Recovered 1 | . . . . . . 1 . . . . . Used . | . . . . . . . . . . . . Hacking Detections 10 | . 1 . . . 2 4 2 . . 1 . Full Trace Events 2 | . . . . . . 1 1 . . . . Feedback Events 1 | . . . . . . . 1 . . . . Corruption 1 | . . . . . . . 1 . . . . Feedback Blocked . | . . . . . . . . . . . . Robot Schematics Acquired . | . . . . . . . . . . . . Robots Built . | . . . . . . . . . . . . Authchips . | . . . . . . . . . . . . Time . | . . . . . . . . . . . . Total Robot Build Rating . | . . . . . . . . . . . . Part Schematics Acquired . | . . . . . . . . . . . . Parts Built . | . . . . . . . . . . . . Authchips . | . . . . . . . . . . . . Time . | . . . . . . . . . . . . Total Part Build Rating . | . . . . . . . . . . . . Parts Repaired 1 | . . . . . . 1 . . . . . Time 44 | . . . . . . 44 . . . . . Parts Recycled . | . . . . . . . . . . . . Recycled Matter . | . . . . . . . . . . . . Retrieved Matter . | . . . . . . . . . . . . Retrieved Components . | . . . . . . . . . . . . Parts Scanalyzed . | . . . . . . . . . . . . Part Schematics Acquired . | . . . . . . . . . . . . Parts Damaged . | . . . . . . . . . . . . Bothacking | -11 -10 -10 -10 -9 -8 -7 -7 -7 -7 -6 -6 ------------ Run | Yrd Mat Min Exi Min Mat Fac Gar Fac DSF Fac Was Used RIF Installer 1 | . . . . . . . 1 . . . . Robots Hacked . | . . . . . . . . . . . . Non-combat . | . . . . . . . . . . . . Combat . | . . . . . . . . . . . . Robot Hacks Applied . | . . . . . . . . . . . . Relay Couplers Released 13 | . . . . . . . 13 . . . . Machine Destruction 13 | . . . . . . . 13 . . . . Attached 1 | . . . . . . . . 1 . . . Fabnet Peak Effective % . | . . . . . . . . . . . . Robots Rewired 1 | . . . . . 1 . . . . . . Allies Hacked . | . . . . . . . . . . . . Hacks Repelled . | . . . . . . . . . . . . Allies | -11 -10 -10 -10 -9 -8 -7 -7 -7 -7 -6 -6 -------- Run | Yrd Mat Min Exi Min Mat Fac Gar Fac DSF Fac Was Total Allies 4 | . . . . . 1 . 2 . . . 1 Largest Group 2 | . . . . . 1 . 2 2 . . 1 Highest-Rated Group 175 | . . . . . 16 . 175 175 . . 31 Highest-Rated Ally 95 | . . . . . 16 . 95 95 . . 31 Total Orders . | . . . . . . . . . . . . Ally Attacks 9 | . . . . . 3 . 2 . . . 4 Total Damage 201 | . . . . . 46 . 94 . . . 61 Kills 2 | . . . . . . . 2 . . . . Allies Corrupted . | . . . . . . . . . . . . Allies Melted . | . . . . . . . . . . . . Intel | -11 -10 -10 -10 -9 -8 -7 -7 -7 -7 -6 -6 ------- Run | Yrd Mat Min Exi Min Mat Fac Gar Fac DSF Fac Was Robot Analysis Total . | . . . . . . . . . . . . Derelict Logs Recovered 2 | . . 1 . 1 . . . . . . . Drone Launches . | . . . . . . . . . . . . Drone Recoveries . | . . . . . . . . . . . . Exploration | -11 -10 -10 -10 -9 -8 -7 -7 -7 -7 -6 -6 ------------- Run | Yrd Mat Min Exi Min Mat Fac Gar Fac DSF Fac Was Turns Passed 8051 | 163 941 97 445 40 2398 1227 1901 327 315 167 30 Spaces Moved 3931 | 78 453 52 260 26 1063 615 1015 139 130 90 10 Core 3 | 3 . . . . . . . . . . . Treads 3928 | 75 453 52 260 26 1063 615 1015 139 130 90 10 Legs . | . . . . . . . . . . . . Wheels . | . . . . . . . . . . . . Hover . | . . . . . . . . . . . . Flight . | . . . . . . . . . . . . Fastest Speed 50 | 50 160 160 160 160 160 167 165 165 157 170 170 Average Speed 167 | 155 160 160 160 160 177 167 165 165 166 170 170 Slowest Speed 320 | 160 160 160 160 160 320 167 167 165 243 170 170 Overloaded Moves . | . . . . . . . . . . . . Propulsion Burnouts . | . . . . . . . . . . . . Robots Hopped . | . . . . . . . . . . . . Cave-ins Triggered . | . . . . . . . . . . . . Exploration Rate (%) 37 | 5 61 15 62 13 74 17 87 3 88 2 21 Regions Visited 11 Branch Regions 3 Pre-discovered Areas . | . . . . . . . . . . . . Known Exits Taken 3 | . . . . 1 . 1 . 1 . . . Unknown Exits Taken 5 | 1 1 1 1 . 1 . . . . . . Scrap Searched . | . . . . . . . . . . . . Spaces Dug . | . . . . . . . . . . . . Terrain Destroyed 118 | . 39 12 3 . 20 6 37 . 1 . . Melee . | . . . . . . . . . . . . Projectile 18 | . . . . . 15 1 1 . 1 . . AOE 100 | . 39 12 3 . 5 5 36 . . . . Terrain Rammed . | . . . . . . . . . . . . Walls Destroyed . | . . . . . . . . . . . . Machines Disabled . | . . . . . . . . . . . . Actions | -11 -10 -10 -10 -9 -8 -7 -7 -7 -7 -6 -6 --------- Run | Yrd Mat Min Exi Min Mat Fac Gar Fac DSF Fac Was Total 4840 | 97 596 58 280 25 1386 750 1139 204 191 97 17 Wait 307 | . 78 . 1 . 105 62 26 19 12 . 4 Move 3921 | 77 452 51 259 25 1062 614 1014 138 129 90 10 Hop . | . . . . . . . . . . . . Pick Up 67 | 4 13 . 1 . 27 8 8 2 4 . . Fast Attach 37 | 6 2 . 2 . 13 4 5 3 . 2 . Attach 29 | . 1 . 1 . 14 4 6 1 2 . . Detach 12 | . 2 . 1 . 3 3 2 1 . . . Swap 55 | . 6 2 4 . 12 9 12 1 9 . . Drop 67 | . 3 . 4 . 27 11 5 5 11 1 . Fire 340 | 10 39 5 7 . 119 35 60 34 24 4 3 Melee . | . . . . . . . . . . . . Ram . | . . . . . . . . . . . . Kick . | . . . . . . . . . . . . Crush 2 | . . . . . 2 . . . . . . Escape Stasis 1 | . . . . . . . 1 . . . . Rewire 2 | . . . . . 2 . . . . . . Trap . | . . . . . . . . . . . . Miscellaneous . | . . . . . . . . . . . . Route ------- -11/Scrapyard -10/Materials (discovered 2 exits: [*Mat] / [*Min]) -10/Mines -10/Exiles (discovered 2 exits: [*Min x2]) -9/Mines -8/Materials (discovered 2 exits: *Fac x2) -7/Factory (discovered 4 exits: [*Sto] / [*Low x2] / Gar) -7/Garrison (discovered 3 exits: *Fac x3) -7/Factory -7/DSF -6/Factory -6/Waste History --------- Turn | Location | Event 14 | -11/Scrapyard | Discovered new exit (range 15) 164 | -11/Scrapyard | Entered Materials 317 | -10/Materials | Build established: Mutant 338 | -10/Materials | Discovered new exit (range 12) 582 | -10/Materials | Discovered new exit (range 12) 1105 | -10/Materials | Entered Mines 1154 | -10/Mines | Learned 2 Materials zone layouts 1192 | -10/Mines | Deemed a non-threat by the Exiles lab entrance 1194 | -10/Mines | Discovered new exit (range 5) 1202 | -10/Mines | Entered Exiles 1223 | -10/Exiles | Discovered new exit (range 15) 1246 | -10/Exiles | Met 8R-AWN 1268 | -10/Exiles | Met EX-HEX 1318 | -10/Exiles | Met EX-BIN 1338 | -10/Exiles | Aligned with FarCom system 1340 | -10/Exiles | Given EX-Vault access code 1378 | -10/Exiles | Opened EX-Vault 1408 | -10/Exiles | Found AWS/Thermal 1416 | -10/Exiles | Found 0b10 Alert Chip 1454 | -10/Exiles | Warned to stay clear of 0b10 Research branches 1510 | -10/Exiles | Met EX-DEC 1568 | -10/Exiles | Discovered new exit (range 12) 1609 | -10/Exiles | Attacked by the Exiles 1647 | -10/Exiles | Stole two prototypes: 0b10 Alert Chip, AWS/Thermal 1647 | -10/Exiles | Entered Mines 1655 | -9/Mines | Identified exit to Materials 1687 | -9/Mines | Entered Materials 1687 | -8/Materials | Evolved 4 slots: Propulsion x1, Utility x3 2194 | -8/Materials | Lost 3 parts (1n1u1w) 2264 | -8/Materials | Lost 5 parts (1p2n2w) 3280 | -8/Materials | Discovered new exit (range 16) 3720 | -8/Materials | Core integrity fell below 50% 3779 | -8/Materials | Lost 3 parts (1u2w) 3835 | -8/Materials | Discovered new exit (range 4) 4085 | -8/Materials | Entered Factory 4085 | -7/Factory | Evolved 2 slots: Propulsion x1, Utility x1 4153 | -7/Factory | Repaired Lyr. Light Armor Plating 4231 | -7/Factory | Build established: Hacker-Mutant 4896 | -7/Factory | Discovered new exit (range 11) 4948 | -7/Factory | Discovered new exit (range 4) 5152 | -7/Factory | Discovered new exit (range 14) 5165 | -7/Factory | Identified exit to Garrison 5312 | -7/Factory | Entered Garrison 5332 | -7/Garrison | Triggered checkpoint 5385 | -7/Garrison | Garrison Relay disabled 5491 | -7/Garrison | Build established: Mutant 5500 | -7/Garrison | Triggered checkpoint 5701 | -7/Garrison | Discovered new exit (range 10) 5740 | -7/Garrison | Triggered checkpoint 5767 | -7/Garrison | Garrison Relay disabled 5851 | -7/Garrison | Lost 3 parts (1u2w) 6006 | -7/Garrison | Triggered checkpoint 6020 | -7/Garrison | System corruption reached 10% 6054 | -7/Garrison | Discovered new exit (range 10) 6059 | -7/Garrison | Found embedded Infiltrators 6144 | -7/Garrison | Triggered checkpoint 6176 | -7/Garrison | Triggered checkpoint 6233 | -7/Garrison | Discovered new exit (range 8) 6302 | -7/Garrison | Triggered checkpoint 6480 | -7/Garrison | Build established: Scavenger-Mutant 6908 | -7/Garrison | Installed Relay Interface Framework 7213 | -7/Garrison | Entered Factory 7213 | -7/Factory | Accompanied by 2 allies 7492 | -7/Factory | Identified exit to DSF 7540 | -7/Factory | Entered DSF 7593 | -7/DSF | Additional patrols routed to DSF 7793 | -7/DSF | Sterilization system engaged 7813 | -7/DSF | Ambient heat levels rising (+10) 7828 | -7/DSF | Ambient heat levels rising (+10) 7831 | -7/DSF | Discovered new exit (range 15) 7843 | -7/DSF | Ambient heat levels rising (+10) 7855 | -7/DSF | Entered Factory 7855 | -6/Factory | Evolved 2 slots: Utility x2 7966 | -6/Factory | Build established: Bothacker-Mutant 8022 | -6/Factory | Sucked down chute 8022 | -6/Factory | Entered Waste 8023 | -6/Waste | Met a frightened Derelict 8037 | -6/Waste | EMP discharged 8038 | -6/Waste | Spotted C-40 Crusher 8050 | -6/Waste | Crushed by Compactor (1 part destroyed, 2 dropped) 8052 | -6/Waste | Self-destructed Last Messages --------------- LOCATION=UNKNOWN GOAL=ESCAPE 08023_ HG-DIF(g): "Oh no, you too?! We need to get out of this place, preferably unseen. I've heard terrible stories about what compactors can do if you allow them to get too close... Maybe together we can make it." 08027_ ALERT: Foreign system detected. Charging EMP. 08037_ Broken Neutrino Core fried beyond repair. 08037_ System corrupted (+5). 08039_ System corrupted: IFF burst signal emitted. 08043_ System corrupted: Cld. Pulse Rifle failed to cycle. 08044_ 5 Matter crushed. 08048_ Broken Linear Accelerator crushed. 08050_ Med. Reactive Plating crushed. 08050_ Arm. Treads crushed. 08050_ Adv. Cooling System crushed. Map ----- +----------------------------------------------------+ | ?????????????????????????????????????????????????? | | ?????????????????????????????????????????????????? | | ?????????????????????????????????????????????????? | | ?????????????????????????????????????????????????? | | ?????????????????????????????????????????????????? | | ?????????????????????????????????????????????????? | | ?????????????????????????????????????????????????? | | ?????????????????????????????????????????????????? | | ?????????????????????????????????????????????????? | | ?????????????????????????????????????????????????? | | ????????????????????????? ?????????????????????? | | ????????????????????????? #???????????????????? | | ????????????????????????? ###?????????????????? | | ????????????????????????? ?????????????????? | | ????????????????????????? ?????????????????? | | ????????????????????????? ??????????????????? | | ????????????????????????? ???????????????????? | | ????????????????????????# #???????????????????? | | ??????????############??# #???????????????????? | | ??????????# #??# #???????????????????? | | ??????????# #??#% ] #???????????????????? | | ??????????# #### #???????????????????? | | ??????????# g #???????????????????? | | ??????????# CC% #???????????????????? | | ??????????# CC #???????????????????? | | ??????????# / !@ #???????????????????? | | ??????????# #### #???????????????????? | | ??????????# #??# #???????????????????? | | ??????????# #??# #???????????????????? | | ??????????############??# #???????????????????? | | ????????????????????????# #???????????????????? | | ???????????????????????? ???????????????????? | | ???????????????????????? ??????????????????? | | ???????????????????????? #?????????????????? | | ???????????????????????? #?????????????????? | | ???????????????????????? #?????????????????? | | ???????????????????????? #?????????????????? | | ???????????????????????? #?????????????????? | | ???????????????????????? #?????????????????? | | ????????????????????????######???????????????????? | | ?????????????????????????????????????????????????? | | ?????????????????????????????????????????????????? | | ?????????????????????????????????????????????????? | | ?????????????????????????????????????????????????? | | ?????????????????????????????????????????????????? | | ?????????????????????????????????????????????????? | | ?????????????????????????????????????????????????? | | ?????????????????????????????????????????????????? | | ?????????????????????????????????????????????????? | | ?????????????????????????????????????????????????? | +----------------------------------------------------+ Best States ------------- Heat Dissipation 68 Energy Generation 19 Energy Capacity 500 Matter Stores 300 Matter Capacity 300 Sight Range 16 Terrain Scan Density 10 Additional Mass Support 12 Armor Coverage 375 Resistance: KI 30 Utility Shielding 33 Evasion (%) 40 Targeting Accuracy 8 Recoil Reduction 4 Offensive Hacking 20 Relay Coupler Types 1 Relay Coupler Value 28 Item Schematics ----------------- None Robot Schematics ------------------ None Fabricated ------------ Nothing Alien Tech Used ----------------- None Achievements -------------- None Challenges ------------ None Game ------ Seed RestorationSapperLegs Manual? 0 Play Time 00:50:55 Cumulative 407.8 hours Start 2024.05.19 @ 16:50:20 End 2024.05.20 @ 00:22:06 Sessions 2 Manual Loads 0 Difficulty Rogue Special Mode None Game No. 467 Rogue 467 Adventurer 0 Explorer 0 Win Type - Total 34 Types 22/3/8/1/0/0/0/0/0 Lore% 71 Gallery% 82 Achievement% 62 Wizard Run 0 Options --------- Layout 1 ASCII 1 Keyboard 1 Movement Numpad Keybinds 0 Fullscreen 1 Font 24/Tamsyn Map View 50x35 Zoom Use 0% Tactical HUD 1 Map Filters NONE Filters NONE Steam 1 RUN: 2ca69195-4cc1-488d-9326-5b40cf529b44